Workbook

Sheet FLAPPY_BIRD
P2: SCORE: | S2: GAME SETTINGS: | AH2: INITIALISATION | AL2: =TRUNC(AM3,0) -> 0 | AM2: t | AN2: a | AO2: v | AP2: x | AQ2: a | AR2: v | AS2: y | AT2: a | AU2: v | AV2: x | BD2: 30 | BF2: 0 | BM2: távolsag | BN2: szelesseg | BP2: STAGE | BQ2: hézag
P3: =IF(AI23="g",MATCH(AV3+T5-VLOOKUP(AH33,BI3:BN2002,6)/2,BF2:BF1002,1)-1,"") -> 0 | S3: dt= | T3: 0.01 | U3: s | AH3: t0 | AI3: 0 | AL3: t | AM3: =AM4+AI4 -> 0.01 | AN3: 0 | AO3: =AO4+(AN4+AN3)/2*(AM3-AM4) -> 0 | AP3: =AP4+(AO4+AO3)/2*(AM3-AM4) -> 30 | AQ3: -6000 | AR3: =AR4+(AQ4+AQ3)/2*(AM3-AM4) -> -30 | AS3: =AS4+(AR4+AR3)/2*(AM3-AM4) -> 89.85 | AT3: 0 | AU3: =AU4+(AT4+AT3)/2*(AM3-AM4) -> 0 | AV3: =IF(AI23="g",ROUNDUP((AM3*T13),1),AI24) -> 2 | AW3: =ROUND(AV3,1) -> 2 | AX3: 0 | AY3: =VLOOKUP(AV3,$BJ$3:$BK$2002,2) -> -10 | AZ3: =VLOOKUP(AV3,$BJ$3:$BL$2002,3) -> 1000 | BA3: =VLOOKUP(AI5,$AX$3:$AZ$983,2)+3 -> -7 | BB3: =VLOOKUP(AI5,$AX$3:$AZ$983,3)-3 -> 997 | BC3: =$AI$39-BD3 -> 78 | BD3: 57 | BE3: 1 | BF3: 200 | BG3: =BD3 -> 57 | BH3: =IF(BG3="",100,BG3+BQ3) -> 92 | BI3: 0 | BJ3: 0 | BK3: =IF(BI3=0,-10,VLOOKUP(BI3,$BE$3:$BG$1002,3)) -> -10 | BL3: 1000 | BM3: 26 | BN3: 0 | BO3: szélesség | BP3: =R35 -> 10 | BQ3: 35
S4: initial position of Faby: | AH4: dt | AI4: =T3 -> 0.01 | AL4: t-dt | AM4: 0 | AO4: 0 | AP4: 30 | AR4: 0 | AS4: 90 | AV4: =AV3+0.1 -> 2.1 | AW4: =ROUND(AV4,1) -> 2.1 | AX4: 0.1 | AY4: =VLOOKUP(AV4,$BJ$3:$BK$2002,2) -> -10 | AZ4: =VLOOKUP(AV4,$BJ$3:$BL$2002,3) -> 1000 | BA4: =IF(AND(AS3>BA3,AS3<BB3),1,2) -> 1 | BB4: =IF(AS3<BA3+3,1,"") ->  | BC4: 125 | BD4: 10 | BE4: 2 | BF4: =BF3+BM4 -> 245 | BG4: =BD4 -> 10 | BH4: =IF(BG4="",100,BG4+BQ4) -> 45 | BI4: 1 | BJ4: =IF(ISNUMBER(BI4),VLOOKUP(BI4,$BE$3:$BG$1002,2)-BN4/2,BJ3+BN3) -> 194.5 | BK4: =IF(BI4=0,-10,VLOOKUP(BI4,$BE$3:$BG$1002,3)) -> 57 | BL4: =IF(ISNUMBER(BI4),VLOOKUP(BI4,$BE$3:$BH$1002,4),1000) -> 92 | BM4: 45 | BN4: 11 | BO4: hézag | BP4: =T35 -> 35 | BQ4: 35
S5: x0= | T5: 30 | U5: m | AH5: X0 | AI5: =T5 -> 30 | AV5: =AV4+0.1 -> 2.2 | AW5: 2.2 | AX5: 0.2 | AY5: -10 | AZ5: 1000 | BA5: Game Over: | BC5: 105 | BD5: 30 | BE5: 3 | BF5: =BF4+BM5 -> 290 | BG5: 30 | BH5: 65 | BJ5: =IF(ISNUMBER(BI5),VLOOKUP(BI5,$BE$3:$BG$1002,2)-BN5/2,BJ4+BN4) -> 205.5 | BK5: -10 | BL5: =IF(ISNUMBER(BI5),VLOOKUP(BI5,$BE$3:$BH$1002,4),1000) -> 1000 | BM5: 45 | BN5: 10 | BO5: sűrűség | BP5: =P35 -> 45 | BQ5: 35
S6: y0= | T6: 90 | U6: m | AH6: vx0 | AI6: =T8 -> 0 | AV6: 2.3 | AW6: 2.3 | AX6: 0.3 | AY6: -10 | AZ6: 1000 | BA6: =IF(OR(BA4=1,AI23="d"),NA(),50) ->  | BB6: =IF(OR(BA4=1,AI23="d"),NA(),50) ->  | BC6: 73 | BD6: 62 | BE6: 4 | BF6: 335 | BG6: 62 | BH6: 97 | BI6: 2 | BJ6: 240 | BK6: 10 | BL6: 45 | BM6: 45 | BN6: 10 | BO6: reshelye | BP6: =T22 -> 30 | BQ6: 35
S7: initial velocity of Faby: | AH7: ax0 | AI7: 0 | AV7: 2.4 | AW7: 2.4 | AX7: 0.4 | AY7: -10 | AZ7: 1000 | BC7: 75 | BD7: 60 | BE7: 5 | BF7: 380 | BG7: 60 | BH7: 95 | BJ7: 250 | BK7: -10 | BL7: 1000 | BM7: 45 | BN7: 10 | BQ7: 35
S8: vx0= | T8: 0 | U8: m/s | AH8: y0 | AI8: =T6 -> 90 | AV8: 2.5 | AW8: 2.5 | AX8: 0.5 | AY8: -10 | AZ8: 1000 | BC8: 134 | BD8: 1 | BE8: 6 | BF8: 425 | BG8: 1 | BH8: 36 | BI8: 3 | BJ8: 285 | BK8: 30 | BL8: 65 | BM8: 45 | BN8: 10 | BQ8: 35
S9: vy0= | T9: 0 | U9: m/s | AH9: vy0 | AI9: =T9 -> 0 | AV9: 2.6 | AW9: 2.6 | AX9: 0.6 | AY9: -10 | AZ9: 1000 | BC9: 65 | BD9: 70 | BE9: 7 | BF9: 470 | BG9: 70 | BH9: 105 | BJ9: 295 | BK9: -10 | BL9: 1000 | BM9: 45 | BN9: 10 | BQ9: 35
S10: vertical acceleration: | AH10: ay0 | AI10: =T11 -> -6000 | AV10: 2.7 | AW10: 2.7 | AX10: 0.7 | AY10: -10 | AZ10: 1000 | BC10: 105 | BD10: 30 | BE10: 8 | BF10: 515 | BG10: 30 | BH10: 65 | BI10: 4 | BJ10: 330 | BK10: 62 | BL10: 97 | BM10: 45 | BN10: 10 | BQ10: 35
S11: a= | T11: -6000 | U11: m/s^2 | AV11: 2.8 | AW11: 2.8 | AX11: 0.8 | AY11: -10 | AZ11: 1000 | BC11: 130 | BD11: 5 | BE11: 9 | BF11: 560 | BG11: 5 | BH11: 40 | BJ11: 340 | BK11: -10 | BL11: 1000 | BM11: 45 | BN11: 10 | BQ11: 35
S12: velocity of Faby: | AH12: JUMPING | AV12: 2.9 | AW12: 2.9 | AX12: 0.9 | AY12: -10 | AZ12: 1000 | BC12: 73 | BD12: 62 | BE12: 10 | BF12: 605 | BG12: 62 | BH12: 97 | BI12: 5 | BJ12: 375 | BK12: 60 | BL12: 95 | BM12: 45 | BN12: 10 | BQ12: 35
S13: vp= | T13: 200 | U13: m/s | AV13: 3 | AW13: 3 | AX13: 1 | AY13: -10 | AZ13: 1000 | BC13: 110 | BD13: 25 | BE13: 11 | BF13: 650 | BG13: 25 | BH13: 60 | BJ13: 385 | BK13: -10 | BL13: 1000 | BM13: 45 | BN13: 10 | BQ13: 35
S14: initial velocity of flapping: | AH14: vyJ | AI14: =T15 -> 450 | AV14: 3.1 | AW14: 3.1 | AX14: 1.1 | AY14: -10 | AZ14: 1000 | BC14: 92 | BD14: 43 | BE14: 12 | BF14: 695 | BG14: 43 | BH14: 78 | BI14: 6 | BJ14: 420 | BK14: 1 | BL14: 36 | BM14: 45 | BN14: 10 | BQ14: 35
S15: vf0= | T15: 450 | U15: m/s | AV15: 3.2 | AW15: 3.2 | AX15: 1.2 | AY15: -10 | AZ15: 1000 | BC15: 76 | BD15: 59 | BE15: 13 | BF15: 740 | BG15: 59 | BH15: 94 | BJ15: 430 | BK15: -10 | BL15: 1000 | BM15: 45 | BN15: 10 | BQ15: 35
AH16: WALLS | AV16: 3.3 | AW16: 3.3 | AX16: 1.3 | AY16: -10 | AZ16: 1000 | BC16: 126 | BD16: 9 | BE16: 14 | BF16: 785 | BG16: 9 | BH16: 44 | BI16: 7 | BJ16: 465 | BK16: 70 | BL16: 105 | BM16: 45 | BN16: 10 | BQ16: 35
P17: STAGE DESIGNER | AV17: 3.4 | AW17: 3.4 | AX17: 1.4 | AY17: -10 | AZ17: 1000 | BC17: 79 | BD17: 56 | BE17: 15 | BF17: 830 | BG17: 56 | BH17: 91 | BJ17: 475 | BK17: -10 | BL17: 1000 | BM17: 45 | BN17: 10 | BQ17: 35
AH18: a0 | AI18: 0 | AV18: 3.5 | AW18: 3.5 | AX18: 1.5 | AY18: -10 | AZ18: 1000 | BC18: 118 | BD18: 17 | BE18: 16 | BF18: 875 | BG18: 17 | BH18: 52 | BI18: 8 | BJ18: 510 | BK18: 30 | BL18: 65 | BM18: 45 | BN18: 10 | BQ18: 35
P19: column change | S19: lower position of gap | AH19: v0 | AI19: 10 | AV19: 3.6 | AW19: 3.6 | AX19: 1.6 | AY19: -10 | AZ19: 1000 | BC19: 99 | BD19: 36 | BE19: 17 | BF19: 920 | BG19: 36 | BH19: 71 | BJ19: 520 | BK19: -10 | BL19: 1000 | BM19: 45 | BN19: 10 | BQ19: 35
T20: default value: | AH20: x0 | AI20: 0 | AV20: 3.7 | AW20: 3.7 | AX20: 1.7 | AY20: -10 | AZ20: 1000 | BC20: 134 | BD20: 1 | BE20: 18 | BF20: 965 | BG20: 1 | BH20: 36 | BI20: 9 | BJ20: 555 | BK20: 5 | BL20: 40 | BM20: 45 | BN20: 10 | BQ20: 35
AV21: 3.8 | AW21: 3.8 | AX21: 1.8 | AY21: -10 | AZ21: 1000 | BC21: 85 | BD21: 50 | BE21: 19 | BF21: 1010 | BG21: 50 | BH21: 85 | BJ21: 565 | BK21: -10 | BL21: 1000 | BM21: 45 | BN21: 10 | BQ21: 35
T22: 30 | AV22: 3.9 | AW22: 3.9 | AX22: 1.9 | AY22: -10 | AZ22: 1000 | BC22: 105 | BD22: 30 | BE22: 20 | BF22: 1055 | BG22: 30 | BH22: 65 | BI22: 10 | BJ22: 600 | BK22: 62 | BL22: 97 | BM22: 45 | BN22: 10 | BQ22: 35
AH23: g/d | AI23: =IF(AH30="game mode","g","d") -> g | AV23: 4 | AW23: 4 | AX23: 2 | AY23: -10 | AZ23: 1000 | BC23: 121 | BD23: 14 | BE23: 21 | BF23: 1100 | BG23: 14 | BH23: 49 | BJ23: 610 | BK23: -10 | BL23: 1000 | BM23: 45 | BN23: 10 | BQ23: 35
P24: active column: | R24: 2 | AI24: =VLOOKUP(AI25,BE3:BF1002,2)-50 -> 195 | AV24: 4.1 | AW24: 4.1 | AX24: 2.1 | AY24: -10 | AZ24: 1000 | BC24: 105 | BD24: 30 | BE24: 22 | BF24: 1145 | BG24: 30 | BH24: 65 | BI24: 11 | BJ24: 645 | BK24: 25 | BL24: 60 | BM24: 45 | BN24: 10 | BQ24: 35
S25: =VLOOKUP(R24,BE3:BG1002,3) -> 10 | AI25: =R24 -> 2 | AV25: 4.2 | AW25: 4.2 | AX25: 2.2 | AY25: -10 | AZ25: 1000 | BC25: 64 | BD25: 71 | BE25: 23 | BF25: 1190 | BG25: 71 | BH25: 106 | BJ25: 655 | BK25: -10 | BL25: 1000 | BM25: 45 | BN25: 10 | BQ25: 35
P26: distance: | R26: =AI24 -> 195 | AI26: =R24 -> 2 | AV26: 4.3 | AW26: 4.3 | AX26: 2.3 | AY26: -10 | AZ26: 1000 | BC26: 112 | BD26: 23 | BE26: 24 | BF26: 1235 | BG26: 23 | BH26: 58 | BI26: 12 | BJ26: 690 | BK26: 43 | BL26: 78 | BM26: 45 | BN26: 10 | BQ26: 35
AV27: 4.4 | AW27: 4.4 | AX27: 2.4 | AY27: -10 | AZ27: 1000 | BC27: 119 | BD27: 16 | BE27: 25 | BF27: 1280 | BG27: 16 | BH27: 51 | BJ27: 700 | BK27: -10 | BL27: 1000 | BM27: 45 | BN27: 10 | BQ27: 35
P28: distance from previous column: | R28: width of column: | T28: height of gap: | AH28: game mode | AV28: 4.5 | AW28: 4.5 | AX28: 2.5 | AY28: -10 | AZ28: 1000 | BC28: 127 | BD28: 8 | BE28: 26 | BF28: 1325 | BG28: 8 | BH28: 43 | BI28: 13 | BJ28: 735 | BK28: 59 | BL28: 94 | BM28: 45 | BN28: 10 | BQ28: 35
AH29: stagedesigner mode | AV29: 4.6 | AW29: 4.6 | AX29: 2.6 | AY29: -10 | AZ29: 1000 | BC29: 100 | BD29: 35 | BE29: 27 | BF29: 1370 | BG29: 35 | BH29: 70 | BJ29: 745 | BK29: -10 | BL29: 1000 | BM29: 45 | BN29: 10 | BQ29: 35
U30: =VLOOKUP(R24,BE3:BQ1002,13) -> 35 | AH30: game mode | AV30: 4.7 | AW30: 4.7 | AX30: 2.7 | AY30: -10 | AZ30: 1000 | BC30: 127 | BD30: 8 | BE30: 28 | BF30: 1415 | BG30: 8 | BH30: 43 | BI30: 14 | BJ30: 780 | BK30: 9 | BL30: 44 | BM30: 45 | BN30: 10 | BQ30: 35
AV31: 4.8 | AW31: 4.8 | AX31: 2.8 | AY31: -10 | AZ31: 1000 | BC31: 71 | BD31: 64 | BE31: 29 | BF31: 1460 | BG31: 64 | BH31: 99 | BJ31: 790 | BK31: -10 | BL31: 1000 | BM31: 45 | BN31: 10 | BQ31: 35
P32: =VLOOKUP(R24,BE3:BM1002,9) -> 45 | R32: =VLOOKUP(R24,BI4:BN2002,6) -> 10 | AV32: 4.9 | AW32: 4.9 | AX32: 2.9 | AY32: -10 | AZ32: 1000 | BC32: 70 | BD32: 65 | BE32: 30 | BF32: 1505 | BG32: 65 | BH32: 100 | BI32: 15 | BJ32: 825 | BK32: 56 | BL32: 91 | BM32: 45 | BN32: 10 | BQ32: 35
P33: default value: | R33: default value: | T33: default value: | AH33: =MATCH(AV3+T5,BF2:BF1002,1)-1 -> 0 | AV33: 5 | AW33: 5 | AX33: 3 | AY33: -10 | AZ33: 1000 | BC33: 77 | BD33: 58 | BE33: 31 | BF33: 1550 | BG33: 58 | BH33: 93 | BJ33: 835 | BK33: -10 | BL33: 1000 | BM33: 45 | BN33: 10 | BQ33: 35
AJ34: -16 | AV34: 5.1 | AW34: 5.1 | AX34: 3.1 | AY34: -10 | AZ34: 1000 | BC34: 127 | BD34: 8 | BE34: 32 | BF34: 1595 | BG34: 8 | BH34: 43 | BI34: 16 | BJ34: 870 | BK34: 17 | BL34: 52 | BM34: 45 | BN34: 10 | BQ34: 35
P35: 45 | R35: 10 | T35: 35 | AH35: 1 | AV35: 5.2 | AW35: 5.2 | AX35: 3.2 | AY35: -10 | AZ35: 1000 | BC35: 95 | BD35: 40 | BE35: 33 | BF35: 1640 | BG35: 40 | BH35: 75 | BJ35: 880 | BK35: -10 | BL35: 1000 | BM35: 45 | BN35: 10 | BQ35: 35
AV36: 5.3 | AW36: 5.3 | AX36: 3.3 | AY36: -10 | AZ36: 1000 | BC36: 135 | BD36: 0 | BE36: 34 | BF36: 1685 | BG36: 0 | BH36: 35 | BI36: 17 | BJ36: 915 | BK36: 36 | BL36: 71 | BM36: 45 | BN36: 10 | BQ36: 35
AH37: max x | AI37: =MAX(BE3:BE1002) -> 1000 | AV37: 5.4 | AW37: 5.4 | AX37: 3.4 | AY37: -10 | AZ37: 1000 | BC37: 135 | BD37: 0 | BE37: 35 | BF37: 1730 | BG37: 0 | BH37: 35 | BJ37: 925 | BK37: -10 | BL37: 1000 | BM37: 45 | BN37: 10 | BQ37: 35
AV38: 5.5 | AW38: 5.5 | AX38: 3.5 | AY38: -10 | AZ38: 1000 | BC38: 122 | BD38: 13 | BE38: 36 | BF38: 1775 | BG38: 13 | BH38: 48 | BI38: 18 | BJ38: 960 | BK38: 1 | BL38: 36 | BM38: 45 | BN38: 10 | BQ38: 35
AH39: max y | AI39: =100+$BP$4 -> 135 | AV39: 5.6 | AW39: 5.6 | AX39: 3.6 | AY39: -10 | AZ39: 1000 | BC39: 64 | BD39: 71 | BE39: 37 | BF39: 1820 | BG39: 71 | BH39: 106 | BJ39: 970 | BK39: -10 | BL39: 1000 | BM39: 45 | BN39: 10 | BQ39: 35
AV40: 5.7 | AW40: 5.7 | AX40: 3.7 | AY40: -10 | AZ40: 1000 | BC40: 135 | BD40: 0 | BE40: 38 | BF40: 1865 | BG40: 0 | BH40: 35 | BI40: 19 | BJ40: 1005 | BK40: 50 | BL40: 85 | BM40: 45 | BN40: 10 | BQ40: 35
AV41: 5.8 | AW41: 5.8 | AX41: 3.8 | AY41: -10 | AZ41: 1000 | BC41: 76 | BD41: 59 | BE41: 39 | BF41: 1910 | BG41: 59 | BH41: 94 | BJ41: 1015 | BK41: -10 | BL41: 1000 | BM41: 45 | BN41: 10 | BQ41: 35
AV42: 5.9 | AW42: 5.9 | AX42: 3.9 | AY42: -10 | AZ42: 1000 | BC42: 133 | BD42: 2 | BE42: 40 | BF42: 1955 | BG42: 2 | BH42: 37 | BI42: 20 | BJ42: 1050 | BK42: 30 | BL42: 65 | BM42: 45 | BN42: 10 | BQ42: 35
AV43: 6 | AW43: 6 | AX43: 4 | AY43: -10 | AZ43: 1000 | BC43: 130 | BD43: 5 | BE43: 41 | BF43: 2000 | BG43: 5 | BH43: 40 | BJ43: 1060 | BK43: -10 | BL43: 1000 | BM43: 45 | BN43: 10 | BQ43: 35
AV44: 6.1 | AW44: 6.1 | AX44: 4.1 | AY44: -10 | AZ44: 1000 | BC44: 114 | BD44: 21 | BE44: 42 | BF44: 2045 | BG44: 21 | BH44: 56 | BI44: 21 | BJ44: 1095 | BK44: 14 | BL44: 49 | BM44: 45 | BN44: 10 | BQ44: 35
AV45: 6.2 | AW45: 6.2 | AX45: 4.2 | AY45: -10 | AZ45: 1000 | BC45: 105 | BD45: 30 | BE45: 43 | BF45: 2090 | BG45: 30 | BH45: 65 | BJ45: 1105 | BK45: -10 | BL45: 1000 | BM45: 45 | BN45: 10 | BQ45: 35
AV46: 6.3 | AW46: 6.3 | AX46: 4.3 | AY46: -10 | AZ46: 1000 | BC46: 84 | BD46: 51 | BE46: 44 | BF46: 2135 | BG46: 51 | BH46: 86 | BI46: 22 | BJ46: 1140 | BK46: 30 | BL46: 65 | BM46: 45 | BN46: 10 | BQ46: 35
AV47: 6.4 | AW47: 6.4 | AX47: 4.4 | AY47: -10 | AZ47: 1000 | BC47: =$AI$39-BD47 -> 62 | BD47: 73 | BE47: 45 | BF47: 2180 | BG47: 73 | BH47: 108 | BJ47: 1150 | BK47: -10 | BL47: 1000 | BM47: 45 | BN47: 10 | BQ47: 35
AV48: 6.5 | AW48: 6.5 | AX48: 4.5 | AY48: -10 | AZ48: 1000 | BC48: 109 | BD48: 26 | BE48: 46 | BF48: 2225 | BG48: 26 | BH48: 61 | BI48: 23 | BJ48: 1185 | BK48: 71 | BL48: 106 | BM48: 45 | BN48: 10 | BQ48: 35
AV49: 6.6 | AW49: 6.6 | AX49: 4.6 | AY49: -10 | AZ49: 1000 | BC49: 66 | BD49: 69 | BE49: 47 | BF49: 2270 | BG49: 69 | BH49: 104 | BJ49: 1195 | BK49: -10 | BL49: 1000 | BM49: 45 | BN49: 10 | BQ49: 35
AV50: 6.7 | AW50: 6.7 | AX50: 4.7 | AY50: -10 | AZ50: 1000 | BC50: 120 | BD50: 15 | BE50: 48 | BF50: 2315 | BG50: 15 | BH50: 50 | BI50: 24 | BJ50: 1230 | BK50: 23 | BL50: 58 | BM50: 45 | BN50: 10 | BQ50: 35
AV51: 6.8 | AW51: 6.8 | AX51: 4.8 | AY51: -10 | AZ51: 1000 | BC51: 89 | BD51: 46 | BE51: 49 | BF51: 2360 | BG51: 46 | BH51: 81 | BJ51: 1240 | BK51: -10 | BL51: 1000 | BM51: 45 | BN51: 10 | BQ51: 35
AV52: 6.9 | AW52: 6.9 | AX52: 4.9 | AY52: -10 | AZ52: 1000 | BC52: 122 | BD52: 13 | BE52: 50 | BF52: 2405 | BG52: 13 | BH52: 48 | BI52: 25 | BJ52: 1275 | BK52: 16 | BL52: 51 | BM52: 45 | BN52: 10 | BQ52: 35
AV53: 7 | AW53: 7 | AX53: 5 | AY53: -10 | AZ53: 1000 | BC53: 91 | BD53: 44 | BE53: 51 | BF53: 2450 | BG53: 44 | BH53: 79 | BJ53: 1285 | BK53: -10 | BL53: 1000 | BM53: 45 | BN53: 10 | BQ53: 35
AV54: 7.1 | AW54: 7.1 | AX54: 5.1 | AY54: -10 | AZ54: 1000 | BC54: 134 | BD54: 1 | BE54: 52 | BF54: 2495 | BG54: 1 | BH54: 36 | BI54: 26 | BJ54: 1320 | BK54: 8 | BL54: 43 | BM54: 45 | BN54: 10 | BQ54: 35
AV55: 7.2 | AW55: 7.2 | AX55: 5.2 | AY55: -10 | AZ55: 1000 | BC55: 68 | BD55: 67 | BE55: 53 | BF55: 2540 | BG55: 67 | BH55: 102 | BJ55: 1330 | BK55: -10 | BL55: 1000 | BM55: 45 | BN55: 10 | BQ55: 35
AV56: 7.3 | AW56: 7.3 | AX56: 5.3 | AY56: -10 | AZ56: 1000 | BC56: 39 | BD56: 96 | BE56: 54 | BF56: 2585 | BG56: 96 | BH56: 131 | BI56: 27 | BJ56: 1365 | BK56: 35 | BL56: 70 | BM56: 45 | BN56: 10 | BQ56: 35
AV57: 7.4 | AW57: 7.4 | AX57: 5.4 | AY57: -10 | AZ57: 1000 | BC57: 105 | BD57: 30 | BE57: 55 | BF57: 2630 | BG57: 30 | BH57: 65 | BJ57: 1375 | BK57: -10 | BL57: 1000 | BM57: 45 | BN57: 10 | BQ57: 35
AV58: 7.5 | AW58: 7.5 | AX58: 5.5 | AY58: -10 | AZ58: 1000 | BC58: 134 | BD58: 1 | BE58: 56 | BF58: 2675 | BG58: 1 | BH58: 36 | BI58: 28 | BJ58: 1410 | BK58: 8 | BL58: 43 | BM58: 45 | BN58: 10 | BQ58: 35
AV59: 7.6 | AW59: 7.6 | AX59: 5.6 | AY59: -10 | AZ59: 1000 | BC59: 105 | BD59: 30 | BE59: 57 | BF59: 2720 | BG59: 30 | BH59: 65 | BJ59: 1420 | BK59: -10 | BL59: 1000 | BM59: 45 | BN59: 10 | BQ59: 35
AV60: 7.7 | AW60: 7.7 | AX60: 5.7 | AY60: -10 | AZ60: 1000 | BC60: 105 | BD60: 30 | BE60: 58 | BF60: 2765 | BG60: 30 | BH60: 65 | BI60: 29 | BJ60: 1455 | BK60: 64 | BL60: 99 | BM60: 45 | BN60: 10 | BQ60: 35
AV61: 7.8 | AW61: 7.8 | AX61: 5.8 | AY61: -10 | AZ61: 1000 | BC61: 105 | BD61: 30 | BE61: 59 | BF61: 2810 | BG61: 30 | BH61: 65 | BJ61: 1465 | BK61: -10 | BL61: 1000 | BM61: 45 | BN61: 10 | BQ61: 35
AV62: 7.9 | AW62: 7.9 | AX62: 5.9 | AY62: -10 | AZ62: 1000 | BC62: 72 | BD62: 63 | BE62: 60 | BF62: 2855 | BG62: 63 | BH62: 98 | BI62: 30 | BJ62: 1500 | BK62: 65 | BL62: 100 | BM62: 45 | BN62: 10 | BQ62: 35
AV63: 8 | AW63: 8 | AX63: 6 | AY63: -10 | AZ63: 1000 | BC63: 119 | BD63: 16 | BE63: 61 | BF63: 2900 | BG63: 16 | BH63: 51 | BJ63: 1510 | BK63: -10 | BL63: 1000 | BM63: 45 | BN63: 10 | BQ63: 35
AV64: 8.1 | AW64: 8.1 | AX64: 6.1 | AY64: -10 | AZ64: 1000 | BC64: 92 | BD64: 43 | BE64: 62 | BF64: 2945 | BG64: 43 | BH64: 78 | BI64: 31 | BJ64: 1545 | BK64: 58 | BL64: 93 | BM64: 45 | BN64: 10 | BQ64: 35
AV65: 8.2 | AW65: 8.2 | AX65: 6.2 | AY65: -10 | AZ65: 1000 | BC65: 124 | BD65: 11 | BE65: 63 | BF65: 2990 | BG65: 11 | BH65: 46 | BJ65: 1555 | BK65: -10 | BL65: 1000 | BM65: 45 | BN65: 10 | BQ65: 35
AV66: 8.3 | AW66: 8.3 | AX66: 6.3 | AY66: -10 | AZ66: 1000 | BC66: 85 | BD66: 50 | BE66: 64 | BF66: 3035 | BG66: 50 | BH66: 85 | BI66: 32 | BJ66: 1590 | BK66: 8 | BL66: 43 | BM66: 45 | BN66: 10 | BQ66: 35
AV67: 8.4 | AW67: 8.4 | AX67: 6.4 | AY67: -10 | AZ67: 1000 | BC67: =$AI$39-BD67 -> 62 | BD67: 73 | BE67: 65 | BF67: 3080 | BG67: 73 | BH67: 108 | BJ67: 1600 | BK67: -10 | BL67: 1000 | BM67: 45 | BN67: 10 | BQ67: 35
AV68: 8.5 | AW68: =ROUND(AV68,1) -> 8.5 | AX68: 6.5 | AY68: =VLOOKUP(AV68,$BJ$3:$BK$2002,2) -> -10 | AZ68: =VLOOKUP(AV68,$BJ$3:$BL$2002,3) -> 1000 | BC68: 47 | BD68: 88 | BE68: 66 | BF68: 3125 | BG68: =BD68 -> 88 | BH68: =IF(BG68="",100,BG68+BQ68) -> 123 | BI68: 33 | BJ68: 1635 | BK68: =IF(BI68=0,-10,VLOOKUP(BI68,$BE$3:$BG$1002,3)) -> 40 | BL68: 75 | BM68: 45 | BN68: 10 | BQ68: 35
AV69: =AV68+0.1 -> 8.6 | AW69: 8.6 | AX69: 6.6 | AY69: -10 | AZ69: 1000 | BC69: 37 | BD69: 98 | BE69: 67 | BF69: =BF68+BM69 -> 3170 | BG69: 98 | BH69: 133 | BJ69: =IF(ISNUMBER(BI69),VLOOKUP(BI69,$BE$3:$BG$1002,2)-BN69/2,BJ68+BN68) -> 1645 | BK69: -10 | BL69: =IF(ISNUMBER(BI69),VLOOKUP(BI69,$BE$3:$BH$1002,4),1000) -> 1000 | BM69: 45 | BN69: 10 | BQ69: 35
AV70: 8.7 | AW70: 8.7 | AX70: 6.7 | AY70: -10 | AZ70: 1000 | BC70: 92 | BD70: 43 | BE70: 68 | BF70: 3215 | BG70: 43 | BH70: 78 | BI70: 34 | BJ70: 1680 | BK70: 0 | BL70: 35 | BM70: 45 | BN70: 10 | BQ70: 35
AV71: 8.8 | AW71: 8.8 | AX71: 6.8 | AY71: -10 | AZ71: 1000 | BC71: 120 | BD71: 15 | BE71: 69 | BF71: 3260 | BG71: 15 | BH71: 50 | BJ71: 1690 | BK71: -10 | BL71: 1000 | BM71: 45 | BN71: 10 | BQ71: 35
AV72: 8.9 | AW72: 8.9 | AX72: 6.9 | AY72: -10 | AZ72: 1000 | BC72: 92 | BD72: 43 | BE72: 70 | BF72: 3305 | BG72: 43 | BH72: 78 | BI72: 35 | BJ72: 1725 | BK72: 0 | BL72: 35 | BM72: 45 | BN72: 10 | BQ72: 35
AV73: 9 | AW73: 9 | AX73: 7 | AY73: -10 | AZ73: 1000 | BC73: 119 | BD73: 16 | BE73: 71 | BF73: 3350 | BG73: 16 | BH73: 51 | BJ73: 1735 | BK73: -10 | BL73: 1000 | BM73: 45 | BN73: 10 | BQ73: 35
AV74: 9.1 | AW74: 9.1 | AX74: 7.1 | AY74: -10 | AZ74: 1000 | BC74: 83 | BD74: 52 | BE74: 72 | BF74: 3395 | BG74: 52 | BH74: 87 | BI74: 36 | BJ74: 1770 | BK74: 13 | BL74: 48 | BM74: 45 | BN74: 10 | BQ74: 35
AV75: 9.2 | AW75: 9.2 | AX75: 7.2 | AY75: -10 | AZ75: 1000 | BC75: 68 | BD75: 67 | BE75: 73 | BF75: 3440 | BG75: 67 | BH75: 102 | BJ75: 1780 | BK75: -10 | BL75: 1000 | BM75: 45 | BN75: 10 | BQ75: 35
AV76: 9.3 | AW76: 9.3 | AX76: 7.3 | AY76: -10 | AZ76: 1000 | BC76: 67 | BD76: 68 | BE76: 74 | BF76: 3485 | BG76: 68 | BH76: 103 | BI76: 37 | BJ76: 1815 | BK76: 71 | BL76: 106 | BM76: 45 | BN76: 10 | BQ76: 35
AV77: 9.4 | AW77: 9.4 | AX77: 7.4 | AY77: -10 | AZ77: 1000 | BC77: 105 | BD77: 30 | BE77: 75 | BF77: 3530 | BG77: 30 | BH77: 65 | BJ77: 1825 | BK77: -10 | BL77: 1000 | BM77: 45 | BN77: 10 | BQ77: 35
AV78: 9.5 | AW78: 9.5 | AX78: 7.5 | AY78: -10 | AZ78: 1000 | BC78: 57 | BD78: 78 | BE78: 76 | BF78: 3575 | BG78: 78 | BH78: 113 | BI78: 38 | BJ78: 1860 | BK78: 0 | BL78: 35 | BM78: 45 | BN78: 10 | BQ78: 35
AV79: 9.6 | AW79: 9.6 | AX79: 7.6 | AY79: -10 | AZ79: 1000 | BC79: 96 | BD79: 39 | BE79: 77 | BF79: 3620 | BG79: 39 | BH79: 74 | BJ79: 1870 | BK79: -10 | BL79: 1000 | BM79: 45 | BN79: 10 | BQ79: 35
AV80: 9.7 | AW80: 9.7 | AX80: 7.7 | AY80: -10 | AZ80: 1000 | BC80: 125 | BD80: 10 | BE80: 78 | BF80: 3665 | BG80: 10 | BH80: 45 | BI80: 39 | BJ80: 1905 | BK80: 59 | BL80: 94 | BM80: 45 | BN80: 10 | BQ80: 35
AV81: 9.8 | AW81: 9.8 | AX81: 7.8 | AY81: -10 | AZ81: 1000 | BC81: 125 | BD81: 10 | BE81: 79 | BF81: 3710 | BG81: 10 | BH81: 45 | BJ81: 1915 | BK81: -10 | BL81: 1000 | BM81: 45 | BN81: 10 | BQ81: 35
AV82: 9.9 | AW82: 9.9 | AX82: 7.9 | AY82: -10 | AZ82: 1000 | BC82: 99 | BD82: 36 | BE82: 80 | BF82: 3755 | BG82: 36 | BH82: 71 | BI82: 40 | BJ82: 1950 | BK82: 2 | BL82: 37 | BM82: 45 | BN82: 10 | BQ82: 35
AV83: 10 | AW83: 10 | AX83: 8 | AY83: -10 | AZ83: 1000 | BC83: 87 | BD83: 48 | BE83: 81 | BF83: 3800 | BG83: 48 | BH83: 83 | BJ83: 1960 | BK83: -10 | BL83: 1000 | BM83: 45 | BN83: 10 | BQ83: 35
AV84: 10.1 | AW84: 10.1 | AX84: 8.1 | AY84: -10 | AZ84: 1000 | BC84: 118 | BD84: 17 | BE84: 82 | BF84: 3845 | BG84: 17 | BH84: 52 | BI84: 41 | BJ84: 1995 | BK84: 5 | BL84: 40 | BM84: 45 | BN84: 10 | BQ84: 35
AV85: 10.2 | AW85: 10.2 | AX85: 8.2 | AY85: -10 | AZ85: 1000 | BC85: 81 | BD85: 54 | BE85: 83 | BF85: 3890 | BG85: 54 | BH85: 89 | BJ85: 2005 | BK85: -10 | BL85: 1000 | BM85: 45 | BN85: 10 | BQ85: 35
AV86: 10.3 | AW86: 10.3 | AX86: 8.3 | AY86: -10 | AZ86: 1000 | BC86: 120 | BD86: 15 | BE86: 84 | BF86: 3935 | BG86: 15 | BH86: 50 | BI86: 42 | BJ86: 2040 | BK86: 21 | BL86: 56 | BM86: 45 | BN86: 10 | BQ86: 35
AV87: 10.4 | AW87: 10.4 | AX87: 8.4 | AY87: -10 | AZ87: 1000 | BC87: 121 | BD87: 14 | BE87: 85 | BF87: 3980 | BG87: 14 | BH87: 49 | BJ87: 2050 | BK87: -10 | BL87: 1000 | BM87: 45 | BN87: 10 | BQ87: 35
AV88: 10.5 | AW88: 10.5 | AX88: 8.5 | AY88: -10 | AZ88: 1000 | BC88: 92 | BD88: 43 | BE88: 86 | BF88: 4025 | BG88: 43 | BH88: 78 | BI88: 43 | BJ88: 2085 | BK88: 30 | BL88: 65 | BM88: 45 | BN88: 10 | BQ88: 35
AV89: 10.6 | AW89: 10.6 | AX89: 8.6 | AY89: -10 | AZ89: 1000 | BC89: 123 | BD89: 12 | BE89: 87 | BF89: 4070 | BG89: 12 | BH89: 47 | BJ89: 2095 | BK89: -10 | BL89: 1000 | BM89: 45 | BN89: 10 | BQ89: 35
AV90: 10.7 | AW90: 10.7 | AX90: 8.7 | AY90: -10 | AZ90: 1000 | BC90: 105 | BD90: 30 | BE90: 88 | BF90: 4115 | BG90: 30 | BH90: 65 | BI90: 44 | BJ90: 2130 | BK90: 51 | BL90: 86 | BM90: 45 | BN90: 10 | BQ90: 35
AV91: 10.8 | AW91: 10.8 | AX91: 8.8 | AY91: -10 | AZ91: 1000 | BC91: 87 | BD91: 48 | BE91: 89 | BF91: 4160 | BG91: 48 | BH91: 83 | BJ91: 2140 | BK91: -10 | BL91: 1000 | BM91: 45 | BN91: 10 | BQ91: 35
AV92: 10.9 | AW92: 10.9 | AX92: 8.9 | AY92: -10 | AZ92: 1000 | BC92: 116 | BD92: 19 | BE92: 90 | BF92: 4205 | BG92: 19 | BH92: 54 | BI92: 45 | BJ92: 2175 | BK92: 73 | BL92: 108 | BM92: 45 | BN92: 10 | BQ92: 35
AV93: 11 | AW93: 11 | AX93: 9 | AY93: -10 | AZ93: 1000 | BC93: 81 | BD93: 54 | BE93: 91 | BF93: 4250 | BG93: 54 | BH93: 89 | BJ93: 2185 | BK93: -10 | BL93: 1000 | BM93: 45 | BN93: 10 | BQ93: 35
AV94: 11.1 | AW94: 11.1 | AX94: 9.1 | AY94: -10 | AZ94: 1000 | BC94: 82 | BD94: 53 | BE94: 92 | BF94: 4295 | BG94: 53 | BH94: 88 | BI94: 46 | BJ94: 2220 | BK94: 26 | BL94: 61 | BM94: 45 | BN94: 10 | BQ94: 35
AV95: 11.2 | AW95: 11.2 | AX95: 9.2 | AY95: -10 | AZ95: 1000 | BC95: 118 | BD95: 17 | BE95: 93 | BF95: 4340 | BG95: 17 | BH95: 52 | BJ95: 2230 | BK95: -10 | BL95: 1000 | BM95: 45 | BN95: 10 | BQ95: 35
AV96: 11.3 | AW96: 11.3 | AX96: 9.3 | AY96: -10 | AZ96: 1000 | BC96: 84 | BD96: 51 | BE96: 94 | BF96: 4385 | BG96: 51 | BH96: 86 | BI96: 47 | BJ96: 2265 | BK96: 69 | BL96: 104 | BM96: 45 | BN96: 10 | BQ96: 35
AV97: 11.4 | AW97: 11.4 | AX97: 9.4 | AY97: -10 | AZ97: 1000 | BC97: 83 | BD97: 52 | BE97: 95 | BF97: 4430 | BG97: 52 | BH97: 87 | BJ97: 2275 | BK97: -10 | BL97: 1000 | BM97: 45 | BN97: 10 | BQ97: 35
AV98: 11.5 | AW98: 11.5 | AX98: 9.5 | AY98: -10 | AZ98: 1000 | BC98: 120 | BD98: 15 | BE98: 96 | BF98: 4475 | BG98: 15 | BH98: 50 | BI98: 48 | BJ98: 2310 | BK98: 15 | BL98: 50 | BM98: 45 | BN98: 10 | BQ98: 35
AV99: 11.6 | AW99: 11.6 | AX99: 9.6 | AY99: -10 | AZ99: 1000 | BC99: 82 | BD99: 53 | BE99: 97 | BF99: 4520 | BG99: 53 | BH99: 88 | BJ99: 2320 | BK99: -10 | BL99: 1000 | BM99: 45 | BN99: 10 | BQ99: 35
AV100: 11.7 | AW100: 11.7 | AX100: 9.7 | AY100: -10 | AZ100: 1000 | BC100: 83 | BD100: 52 | BE100: 98 | BF100: 4565 | BG100: 52 | BH100: 87 | BI100: 49 | BJ100: 2355 | BK100: 46 | BL100: 81 | BM100: 45 | BN100: 10 | BQ100: 35
AV101: 11.8 | AW101: 11.8 | AX101: 9.8 | AY101: -10 | AZ101: 1000 | BC101: 105 | BD101: 30 | BE101: 99 | BF101: 4610 | BG101: 30 | BH101: 65 | BJ101: 2365 | BK101: -10 | BL101: 1000 | BM101: 45 | BN101: 10 | BQ101: 35
AV102: 11.9 | AW102: 11.9 | AX102: 9.9 | AY102: -10 | AZ102: 1000 | BC102: 120 | BD102: 15 | BE102: 100 | BF102: 4655 | BG102: 15 | BH102: 50 | BI102: 50 | BJ102: 2400 | BK102: 13 | BL102: 48 | BM102: 45 | BN102: 10 | BQ102: 35
AV103: 12 | AW103: 12 | AX103: 10 | AY103: -10 | AZ103: 1000 | BC103: 63 | BD103: 72 | BE103: 101 | BF103: 4700 | BG103: 72 | BH103: 107 | BJ103: 2410 | BK103: -10 | BL103: 1000 | BM103: 45 | BN103: 10 | BQ103: 35
AV104: 12.1 | AW104: 12.1 | AX104: 10.1 | AY104: -10 | AZ104: 1000 | BC104: 112 | BD104: 23 | BE104: 102 | BF104: 4745 | BG104: 23 | BH104: 58 | BI104: 51 | BJ104: 2445 | BK104: 44 | BL104: 79 | BM104: 45 | BN104: 10 | BQ104: 35
AV105: 12.2 | AW105: 12.2 | AX105: 10.2 | AY105: -10 | AZ105: 1000 | BC105: 43 | BD105: 92 | BE105: 103 | BF105: 4790 | BG105: 92 | BH105: 127 | BJ105: 2455 | BK105: -10 | BL105: 1000 | BM105: 45 | BN105: 10 | BQ105: 35
AV106: 12.3 | AW106: 12.3 | AX106: 10.3 | AY106: -10 | AZ106: 1000 | BC106: 108 | BD106: 27 | BE106: 104 | BF106: 4835 | BG106: 27 | BH106: 62 | BI106: 52 | BJ106: 2490 | BK106: 1 | BL106: 36 | BM106: 45 | BN106: 10 | BQ106: 35
AV107: 12.4 | AW107: 12.4 | AX107: 10.4 | AY107: -10 | AZ107: 1000 | BC107: 85 | BD107: 50 | BE107: 105 | BF107: 4880 | BG107: 50 | BH107: 85 | BJ107: 2500 | BK107: -10 | BL107: 1000 | BM107: 45 | BN107: 10 | BQ107: 35
AV108: 12.5 | AW108: 12.5 | AX108: 10.5 | AY108: -10 | AZ108: 1000 | BC108: 121 | BD108: 14 | BE108: 106 | BF108: 4925 | BG108: 14 | BH108: 49 | BI108: 53 | BJ108: 2535 | BK108: 67 | BL108: 102 | BM108: 45 | BN108: 10 | BQ108: 35
AV109: 12.6 | AW109: 12.6 | AX109: 10.6 | AY109: -10 | AZ109: 1000 | BC109: 134 | BD109: 1 | BE109: 107 | BF109: 4970 | BG109: 1 | BH109: 36 | BJ109: 2545 | BK109: -10 | BL109: 1000 | BM109: 45 | BN109: 10 | BQ109: 35
AV110: 12.7 | AW110: 12.7 | AX110: 10.7 | AY110: -10 | AZ110: 1000 | BC110: 92 | BD110: 43 | BE110: 108 | BF110: 5015 | BG110: 43 | BH110: 78 | BI110: 54 | BJ110: 2580 | BK110: 96 | BL110: 131 | BM110: 45 | BN110: 10 | BQ110: 35
AV111: 12.8 | AW111: 12.8 | AX111: 10.8 | AY111: -10 | AZ111: 1000 | BC111: 116 | BD111: 19 | BE111: 109 | BF111: 5060 | BG111: 19 | BH111: 54 | BJ111: 2590 | BK111: -10 | BL111: 1000 | BM111: 45 | BN111: 10 | BQ111: 35
AV112: 12.9 | AW112: 12.9 | AX112: 10.9 | AY112: -10 | AZ112: 1000 | BC112: 85 | BD112: 50 | BE112: 110 | BF112: 5105 | BG112: 50 | BH112: 85 | BI112: 55 | BJ112: 2625 | BK112: 30 | BL112: 65 | BM112: 45 | BN112: 10 | BQ112: 35
AV113: 13 | AW113: 13 | AX113: 11 | AY113: -10 | AZ113: 1000 | BC113: 66 | BD113: 69 | BE113: 111 | BF113: 5150 | BG113: 69 | BH113: 104 | BJ113: 2635 | BK113: -10 | BL113: 1000 | BM113: 45 | BN113: 10 | BQ113: 35
AV114: 13.1 | AW114: 13.1 | AX114: 11.1 | AY114: -10 | AZ114: 1000 | BC114: 84 | BD114: 51 | BE114: 112 | BF114: 5195 | BG114: 51 | BH114: 86 | BI114: 56 | BJ114: 2670 | BK114: 1 | BL114: 36 | BM114: 45 | BN114: 10 | BQ114: 35
AV115: 13.2 | AW115: 13.2 | AX115: 11.2 | AY115: -10 | AZ115: 1000 | BC115: 127 | BD115: 8 | BE115: 113 | BF115: 5240 | BG115: 8 | BH115: 43 | BJ115: 2680 | BK115: -10 | BL115: 1000 | BM115: 45 | BN115: 10 | BQ115: 35
AV116: 13.3 | AW116: 13.3 | AX116: 11.3 | AY116: -10 | AZ116: 1000 | BC116: 121 | BD116: 14 | BE116: 114 | BF116: 5285 | BG116: 14 | BH116: 49 | BI116: 57 | BJ116: 2715 | BK116: 30 | BL116: 65 | BM116: 45 | BN116: 10 | BQ116: 35
AV117: 13.4 | AW117: 13.4 | AX117: 11.4 | AY117: -10 | AZ117: 1000 | BC117: 105 | BD117: 30 | BE117: 115 | BF117: 5330 | BG117: 30 | BH117: 65 | BJ117: 2725 | BK117: -10 | BL117: 1000 | BM117: 45 | BN117: 10 | BQ117: 35
AV118: 13.5 | AW118: 13.5 | AX118: 11.5 | AY118: -10 | AZ118: 1000 | BC118: 65 | BD118: 70 | BE118: 116 | BF118: 5375 | BG118: 70 | BH118: 105 | BI118: 58 | BJ118: 2760 | BK118: 30 | BL118: 65 | BM118: 45 | BN118: 10 | BQ118: 35
AV119: 13.6 | AW119: 13.6 | AX119: 11.6 | AY119: -10 | AZ119: 1000 | BC119: 116 | BD119: 19 | BE119: 117 | BF119: 5420 | BG119: 19 | BH119: 54 | BJ119: 2770 | BK119: -10 | BL119: 1000 | BM119: 45 | BN119: 10 | BQ119: 35
AV120: 13.7 | AW120: 13.7 | AX120: 11.7 | AY120: -10 | AZ120: 1000 | BC120: 124 | BD120: 11 | BE120: 118 | BF120: 5465 | BG120: 11 | BH120: 46 | BI120: 59 | BJ120: 2805 | BK120: 30 | BL120: 65 | BM120: 45 | BN120: 10 | BQ120: 35
AV121: 13.8 | AW121: 13.8 | AX121: 11.8 | AY121: -10 | AZ121: 1000 | BC121: 76 | BD121: 59 | BE121: 119 | BF121: 5510 | BG121: 59 | BH121: 94 | BJ121: 2815 | BK121: -10 | BL121: 1000 | BM121: 45 | BN121: 10 | BQ121: 35
AV122: 13.9 | AW122: 13.9 | AX122: 11.9 | AY122: -10 | AZ122: 1000 | BC122: 66 | BD122: 69 | BE122: 120 | BF122: 5555 | BG122: 69 | BH122: 104 | BI122: 60 | BJ122: 2850 | BK122: 63 | BL122: 98 | BM122: 45 | BN122: 10 | BQ122: 35
AV123: 14 | AW123: 14 | AX123: 12 | AY123: -10 | AZ123: 1000 | BC123: 105 | BD123: 30 | BE123: 121 | BF123: 5600 | BG123: 30 | BH123: 65 | BJ123: 2860 | BK123: -10 | BL123: 1000 | BM123: 45 | BN123: 10 | BQ123: 35
AV124: 14.1 | AW124: 14.1 | AX124: 12.1 | AY124: -10 | AZ124: 1000 | BC124: 105 | BD124: 30 | BE124: 122 | BF124: 5645 | BG124: 30 | BH124: 65 | BI124: 61 | BJ124: 2895 | BK124: 16 | BL124: 51 | BM124: 45 | BN124: 10 | BQ124: 35
AV125: 14.2 | AW125: 14.2 | AX125: 12.2 | AY125: -10 | AZ125: 1000 | BC125: 105 | BD125: 30 | BE125: 123 | BF125: 5690 | BG125: 30 | BH125: 65 | BJ125: 2905 | BK125: -10 | BL125: 1000 | BM125: 45 | BN125: 10 | BQ125: 35
AV126: 14.3 | AW126: 14.3 | AX126: 12.3 | AY126: -10 | AZ126: 1000 | BC126: 105 | BD126: 30 | BE126: 124 | BF126: 5735 | BG126: 30 | BH126: 65 | BI126: 62 | BJ126: 2940 | BK126: 43 | BL126: 78 | BM126: 45 | BN126: 10 | BQ126: 35
AV127: 14.4 | AW127: 14.4 | AX127: 12.4 | AY127: -10 | AZ127: 1000 | BC127: 105 | BD127: 30 | BE127: 125 | BF127: 5780 | BG127: 30 | BH127: 65 | BJ127: 2950 | BK127: -10 | BL127: 1000 | BM127: 45 | BN127: 10 | BQ127: 35
AV128: 14.5 | AW128: 14.5 | AX128: 12.5 | AY128: -10 | AZ128: 1000 | BC128: 105 | BD128: 30 | BE128: 126 | BF128: 5825 | BG128: 30 | BH128: 65 | BI128: 63 | BJ128: 2985 | BK128: 11 | BL128: 46 | BM128: 45 | BN128: 10 | BQ128: 35
AV129: 14.6 | AW129: 14.6 | AX129: 12.6 | AY129: -10 | AZ129: 1000 | BC129: 105 | BD129: 30 | BE129: 127 | BF129: 5870 | BG129: 30 | BH129: 65 | BJ129: 2995 | BK129: -10 | BL129: 1000 | BM129: 45 | BN129: 10 | BQ129: 35
AV130: 14.7 | AW130: 14.7 | AX130: 12.7 | AY130: -10 | AZ130: 1000 | BC130: 105 | BD130: 30 | BE130: 128 | BF130: 5915 | BG130: 30 | BH130: 65 | BI130: 64 | BJ130: 3030 | BK130: 50 | BL130: 85 | BM130: 45 | BN130: 10 | BQ130: 35
AV131: 14.8 | AW131: 14.8 | AX131: 12.8 | AY131: -10 | AZ131: 1000 | BC131: =$AI$39-BD131 -> 105 | BD131: 30 | BE131: 129 | BF131: 5960 | BG131: 30 | BH131: 65 | BJ131: 3040 | BK131: -10 | BL131: 1000 | BM131: 45 | BN131: 10 | BQ131: 35
AV132: 14.9 | AW132: =ROUND(AV132,1) -> 14.9 | AX132: 12.9 | AY132: =VLOOKUP(AV132,$BJ$3:$BK$2002,2) -> -10 | AZ132: =VLOOKUP(AV132,$BJ$3:$BL$2002,3) -> 1000 | BC132: 105 | BD132: 30 | BE132: 130 | BF132: 6005 | BG132: =BD132 -> 30 | BH132: =IF(BG132="",100,BG132+BQ132) -> 65 | BI132: 65 | BJ132: 3075 | BK132: =IF(BI132=0,-10,VLOOKUP(BI132,$BE$3:$BG$1002,3)) -> 73 | BL132: 108 | BM132: 45 | BN132: 10 | BQ132: 35
AV133: =AV132+0.1 -> 15 | AW133: 15 | AX133: 13 | AY133: -10 | AZ133: 1000 | BC133: 105 | BD133: 30 | BE133: 131 | BF133: =BF132+BM133 -> 6050 | BG133: 30 | BH133: 65 | BJ133: =IF(ISNUMBER(BI133),VLOOKUP(BI133,$BE$3:$BG$1002,2)-BN133/2,BJ132+BN132) -> 3085 | BK133: -10 | BL133: =IF(ISNUMBER(BI133),VLOOKUP(BI133,$BE$3:$BH$1002,4),1000) -> 1000 | BM133: 45 | BN133: 10 | BQ133: 35
AV134: 15.1 | AW134: 15.1 | AX134: 13.1 | AY134: -10 | AZ134: 1000 | BC134: 105 | BD134: 30 | BE134: 132 | BF134: 6095 | BG134: 30 | BH134: 65 | BI134: 66 | BJ134: 3120 | BK134: 88 | BL134: 123 | BM134: 45 | BN134: 10 | BQ134: 35
AV135: 15.2 | AW135: 15.2 | AX135: 13.2 | AY135: -10 | AZ135: 1000 | BC135: 105 | BD135: 30 | BE135: 133 | BF135: 6140 | BG135: 30 | BH135: 65 | BJ135: 3130 | BK135: -10 | BL135: 1000 | BM135: 45 | BN135: 10 | BQ135: 35
AV136: 15.3 | AW136: 15.3 | AX136: 13.3 | AY136: -10 | AZ136: 1000 | BC136: 105 | BD136: 30 | BE136: 134 | BF136: 6185 | BG136: 30 | BH136: 65 | BI136: 67 | BJ136: 3165 | BK136: 98 | BL136: 133 | BM136: 45 | BN136: 10 | BQ136: 35
AV137: 15.4 | AW137: 15.4 | AX137: 13.4 | AY137: -10 | AZ137: 1000 | BC137: 105 | BD137: 30 | BE137: 135 | BF137: 6230 | BG137: 30 | BH137: 65 | BJ137: 3175 | BK137: -10 | BL137: 1000 | BM137: 45 | BN137: 10 | BQ137: 35
AV138: 15.5 | AW138: 15.5 | AX138: 13.5 | AY138: -10 | AZ138: 1000 | BC138: 105 | BD138: 30 | BE138: 136 | BF138: 6275 | BG138: 30 | BH138: 65 | BI138: 68 | BJ138: 3210 | BK138: 43 | BL138: 78 | BM138: 45 | BN138: 10 | BQ138: 35
AV139: 15.6 | AW139: 15.6 | AX139: 13.6 | AY139: -10 | AZ139: 1000 | BC139: 105 | BD139: 30 | BE139: 137 | BF139: 6320 | BG139: 30 | BH139: 65 | BJ139: 3220 | BK139: -10 | BL139: 1000 | BM139: 45 | BN139: 10 | BQ139: 35
AV140: 15.7 | AW140: 15.7 | AX140: 13.7 | AY140: -10 | AZ140: 1000 | BC140: 105 | BD140: 30 | BE140: 138 | BF140: 6365 | BG140: 30 | BH140: 65 | BI140: 69 | BJ140: 3255 | BK140: 15 | BL140: 50 | BM140: 45 | BN140: 10 | BQ140: 35
AV141: 15.8 | AW141: 15.8 | AX141: 13.8 | AY141: -10 | AZ141: 1000 | BC141: 105 | BD141: 30 | BE141: 139 | BF141: 6410 | BG141: 30 | BH141: 65 | BJ141: 3265 | BK141: -10 | BL141: 1000 | BM141: 45 | BN141: 10 | BQ141: 35
AV142: 15.9 | AW142: 15.9 | AX142: 13.9 | AY142: -10 | AZ142: 1000 | BC142: 105 | BD142: 30 | BE142: 140 | BF142: 6455 | BG142: 30 | BH142: 65 | BI142: 70 | BJ142: 3300 | BK142: 43 | BL142: 78 | BM142: 45 | BN142: 10 | BQ142: 35
AV143: 16 | AW143: 16 | AX143: 14 | AY143: -10 | AZ143: 1000 | BC143: 105 | BD143: 30 | BE143: 141 | BF143: 6500 | BG143: 30 | BH143: 65 | BJ143: 3310 | BK143: -10 | BL143: 1000 | BM143: 45 | BN143: 10 | BQ143: 35
AV144: 16.1 | AW144: 16.1 | AX144: 14.1 | AY144: -10 | AZ144: 1000 | BC144: 105 | BD144: 30 | BE144: 142 | BF144: 6545 | BG144: 30 | BH144: 65 | BI144: 71 | BJ144: 3345 | BK144: 16 | BL144: 51 | BM144: 45 | BN144: 10 | BQ144: 35
AV145: 16.2 | AW145: 16.2 | AX145: 14.2 | AY145: -10 | AZ145: 1000 | BC145: 105 | BD145: 30 | BE145: 143 | BF145: 6590 | BG145: 30 | BH145: 65 | BJ145: 3355 | BK145: -10 | BL145: 1000 | BM145: 45 | BN145: 10 | BQ145: 35
AV146: 16.3 | AW146: 16.3 | AX146: 14.3 | AY146: -10 | AZ146: 1000 | BC146: 105 | BD146: 30 | BE146: 144 | BF146: 6635 | BG146: 30 | BH146: 65 | BI146: 72 | BJ146: 3390 | BK146: 52 | BL146: 87 | BM146: 45 | BN146: 10 | BQ146: 35
AV147: 16.4 | AW147: 16.4 | AX147: 14.4 | AY147: -10 | AZ147: 1000 | BC147: 105 | BD147: 30 | BE147: 145 | BF147: 6680 | BG147: 30 | BH147: 65 | BJ147: 3400 | BK147: -10 | BL147: 1000 | BM147: 45 | BN147: 10 | BQ147: 35
AV148: 16.5 | AW148: 16.5 | AX148: 14.5 | AY148: -10 | AZ148: 1000 | BC148: 105 | BD148: 30 | BE148: 146 | BF148: 6725 | BG148: 30 | BH148: 65 | BI148: 73 | BJ148: 3435 | BK148: 67 | BL148: 102 | BM148: 45 | BN148: 10 | BQ148: 35
AV149: 16.6 | AW149: 16.6 | AX149: 14.6 | AY149: -10 | AZ149: 1000 | BC149: 105 | BD149: 30 | BE149: 147 | BF149: 6770 | BG149: 30 | BH149: 65 | BJ149: 3445 | BK149: -10 | BL149: 1000 | BM149: 45 | BN149: 10 | BQ149: 35
AV150: 16.7 | AW150: 16.7 | AX150: 14.7 | AY150: -10 | AZ150: 1000 | BC150: 105 | BD150: 30 | BE150: 148 | BF150: 6815 | BG150: 30 | BH150: 65 | BI150: 74 | BJ150: 3480 | BK150: 68 | BL150: 103 | BM150: 45 | BN150: 10 | BQ150: 35
AV151: 16.8 | AW151: 16.8 | AX151: 14.8 | AY151: -10 | AZ151: 1000 | BC151: 105 | BD151: 30 | BE151: 149 | BF151: 6860 | BG151: 30 | BH151: 65 | BJ151: 3490 | BK151: -10 | BL151: 1000 | BM151: 45 | BN151: 10 | BQ151: 35
AV152: 16.9 | AW152: 16.9 | AX152: 14.9 | AY152: -10 | AZ152: 1000 | BC152: 105 | BD152: 30 | BE152: 150 | BF152: 6905 | BG152: 30 | BH152: 65 | BI152: 75 | BJ152: 3525 | BK152: 30 | BL152: 65 | BM152: 45 | BN152: 10 | BQ152: 35
AV153: 17 | AW153: 17 | AX153: 15 | AY153: -10 | AZ153: 1000 | BC153: 105 | BD153: 30 | BE153: 151 | BF153: 6950 | BG153: 30 | BH153: 65 | BJ153: 3535 | BK153: -10 | BL153: 1000 | BM153: 45 | BN153: 10 | BQ153: 35
AV154: 17.1 | AW154: 17.1 | AX154: 15.1 | AY154: -10 | AZ154: 1000 | BC154: 105 | BD154: 30 | BE154: 152 | BF154: 6995 | BG154: 30 | BH154: 65 | BI154: 76 | BJ154: 3570 | BK154: 78 | BL154: 113 | BM154: 45 | BN154: 10 | BQ154: 35
AV155: 17.2 | AW155: 17.2 | AX155: 15.2 | AY155: -10 | AZ155: 1000 | BC155: 105 | BD155: 30 | BE155: 153 | BF155: 7040 | BG155: 30 | BH155: 65 | BJ155: 3580 | BK155: -10 | BL155: 1000 | BM155: 45 | BN155: 10 | BQ155: 35
AV156: 17.3 | AW156: 17.3 | AX156: 15.3 | AY156: -10 | AZ156: 1000 | BC156: 105 | BD156: 30 | BE156: 154 | BF156: 7085 | BG156: 30 | BH156: 65 | BI156: 77 | BJ156: 3615 | BK156: 39 | BL156: 74 | BM156: 45 | BN156: 10 | BQ156: 35
AV157: 17.4 | AW157: 17.4 | AX157: 15.4 | AY157: -10 | AZ157: 1000 | BC157: 105 | BD157: 30 | BE157: 155 | BF157: 7130 | BG157: 30 | BH157: 65 | BJ157: 3625 | BK157: -10 | BL157: 1000 | BM157: 45 | BN157: 10 | BQ157: 35
AV158: 17.5 | AW158: 17.5 | AX158: 15.5 | AY158: -10 | AZ158: 1000 | BC158: 105 | BD158: 30 | BE158: 156 | BF158: 7175 | BG158: 30 | BH158: 65 | BI158: 78 | BJ158: 3660 | BK158: 10 | BL158: 45 | BM158: 45 | BN158: 10 | BQ158: 35
AV159: 17.6 | AW159: 17.6 | AX159: 15.6 | AY159: -10 | AZ159: 1000 | BC159: 105 | BD159: 30 | BE159: 157 | BF159: 7220 | BG159: 30 | BH159: 65 | BJ159: 3670 | BK159: -10 | BL159: 1000 | BM159: 45 | BN159: 10 | BQ159: 35
AV160: 17.7 | AW160: 17.7 | AX160: 15.7 | AY160: -10 | AZ160: 1000 | BC160: 105 | BD160: 30 | BE160: 158 | BF160: 7265 | BG160: 30 | BH160: 65 | BI160: 79 | BJ160: 3705 | BK160: 10 | BL160: 45 | BM160: 45 | BN160: 10 | BQ160: 35
AV161: 17.8 | AW161: 17.8 | AX161: 15.8 | AY161: -10 | AZ161: 1000 | BC161: 105 | BD161: 30 | BE161: 159 | BF161: 7310 | BG161: 30 | BH161: 65 | BJ161: 3715 | BK161: -10 | BL161: 1000 | BM161: 45 | BN161: 10 | BQ161: 35
AV162: 17.9 | AW162: 17.9 | AX162: 15.9 | AY162: -10 | AZ162: 1000 | BC162: 105 | BD162: 30 | BE162: 160 | BF162: 7355 | BG162: 30 | BH162: 65 | BI162: 80 | BJ162: 3750 | BK162: 36 | BL162: 71 | BM162: 45 | BN162: 10 | BQ162: 35
AV163: 18 | AW163: 18 | AX163: 16 | AY163: -10 | AZ163: 1000 | BC163: 105 | BD163: 30 | BE163: 161 | BF163: 7400 | BG163: 30 | BH163: 65 | BJ163: 3760 | BK163: -10 | BL163: 1000 | BM163: 45 | BN163: 10 | BQ163: 35
AV164: 18.1 | AW164: 18.1 | AX164: 16.1 | AY164: -10 | AZ164: 1000 | BC164: 105 | BD164: 30 | BE164: 162 | BF164: 7445 | BG164: 30 | BH164: 65 | BI164: 81 | BJ164: 3795 | BK164: 48 | BL164: 83 | BM164: 45 | BN164: 10 | BQ164: 35
AV165: 18.2 | AW165: 18.2 | AX165: 16.2 | AY165: -10 | AZ165: 1000 | BC165: 105 | BD165: 30 | BE165: 163 | BF165: 7490 | BG165: 30 | BH165: 65 | BJ165: 3805 | BK165: -10 | BL165: 1000 | BM165: 45 | BN165: 10 | BQ165: 35
AV166: 18.3 | AW166: 18.3 | AX166: 16.3 | AY166: -10 | AZ166: 1000 | BC166: 105 | BD166: 30 | BE166: 164 | BF166: 7535 | BG166: 30 | BH166: 65 | BI166: 82 | BJ166: 3840 | BK166: 17 | BL166: 52 | BM166: 45 | BN166: 10 | BQ166: 35
AV167: 18.4 | AW167: 18.4 | AX167: 16.4 | AY167: -10 | AZ167: 1000 | BC167: 105 | BD167: 30 | BE167: 165 | BF167: 7580 | BG167: 30 | BH167: 65 | BJ167: 3850 | BK167: -10 | BL167: 1000 | BM167: 45 | BN167: 10 | BQ167: 35
AV168: 18.5 | AW168: 18.5 | AX168: 16.5 | AY168: -10 | AZ168: 1000 | BC168: 105 | BD168: 30 | BE168: 166 | BF168: 7625 | BG168: 30 | BH168: 65 | BI168: 83 | BJ168: 3885 | BK168: 54 | BL168: 89 | BM168: 45 | BN168: 10 | BQ168: 35
AV169: 18.6 | AW169: 18.6 | AX169: 16.6 | AY169: -10 | AZ169: 1000 | BC169: 105 | BD169: 30 | BE169: 167 | BF169: 7670 | BG169: 30 | BH169: 65 | BJ169: 3895 | BK169: -10 | BL169: 1000 | BM169: 45 | BN169: 10 | BQ169: 35
AV170: 18.7 | AW170: 18.7 | AX170: 16.7 | AY170: -10 | AZ170: 1000 | BC170: 105 | BD170: 30 | BE170: 168 | BF170: 7715 | BG170: 30 | BH170: 65 | BI170: 84 | BJ170: 3930 | BK170: 15 | BL170: 50 | BM170: 45 | BN170: 10 | BQ170: 35
AV171: 18.8 | AW171: 18.8 | AX171: 16.8 | AY171: -10 | AZ171: 1000 | BC171: 105 | BD171: 30 | BE171: 169 | BF171: 7760 | BG171: 30 | BH171: 65 | BJ171: 3940 | BK171: -10 | BL171: 1000 | BM171: 45 | BN171: 10 | BQ171: 35
AV172: 18.9 | AW172: 18.9 | AX172: 16.9 | AY172: -10 | AZ172: 1000 | BC172: 105 | BD172: 30 | BE172: 170 | BF172: 7805 | BG172: 30 | BH172: 65 | BI172: 85 | BJ172: 3975 | BK172: 14 | BL172: 49 | BM172: 45 | BN172: 10 | BQ172: 35
AV173: 19 | AW173: 19 | AX173: 17 | AY173: -10 | AZ173: 1000 | BC173: 105 | BD173: 30 | BE173: 171 | BF173: 7850 | BG173: 30 | BH173: 65 | BJ173: 3985 | BK173: -10 | BL173: 1000 | BM173: 45 | BN173: 10 | BQ173: 35
AV174: 19.1 | AW174: 19.1 | AX174: 17.1 | AY174: -10 | AZ174: 1000 | BC174: 105 | BD174: 30 | BE174: 172 | BF174: 7895 | BG174: 30 | BH174: 65 | BI174: 86 | BJ174: 4020 | BK174: 43 | BL174: 78 | BM174: 45 | BN174: 10 | BQ174: 35
AV175: 19.2 | AW175: 19.2 | AX175: 17.2 | AY175: -10 | AZ175: 1000 | BC175: 105 | BD175: 30 | BE175: 173 | BF175: 7940 | BG175: 30 | BH175: 65 | BJ175: 4030 | BK175: -10 | BL175: 1000 | BM175: 45 | BN175: 10 | BQ175: 35
AV176: 19.3 | AW176: 19.3 | AX176: 17.3 | AY176: -10 | AZ176: 1000 | BC176: 105 | BD176: 30 | BE176: 174 | BF176: 7985 | BG176: 30 | BH176: 65 | BI176: 87 | BJ176: 4065 | BK176: 12 | BL176: 47 | BM176: 45 | BN176: 10 | BQ176: 35
AV177: 19.4 | AW177: 19.4 | AX177: 17.4 | AY177: -10 | AZ177: 1000 | BC177: 105 | BD177: 30 | BE177: 175 | BF177: 8030 | BG177: 30 | BH177: 65 | BJ177: 4075 | BK177: -10 | BL177: 1000 | BM177: 45 | BN177: 10 | BQ177: 35
AV178: 19.5 | AW178: 19.5 | AX178: 17.5 | AY178: -10 | AZ178: 1000 | BC178: 105 | BD178: 30 | BE178: 176 | BF178: 8075 | BG178: 30 | BH178: 65 | BI178: 88 | BJ178: 4110 | BK178: 30 | BL178: 65 | BM178: 45 | BN178: 10 | BQ178: 35
AV179: 19.6 | AW179: 19.6 | AX179: 17.6 | AY179: -10 | AZ179: 1000 | BC179: 105 | BD179: 30 | BE179: 177 | BF179: 8120 | BG179: 30 | BH179: 65 | BJ179: 4120 | BK179: -10 | BL179: 1000 | BM179: 45 | BN179: 10 | BQ179: 35
AV180: 19.7 | AW180: 19.7 | AX180: 17.7 | AY180: -10 | AZ180: 1000 | BC180: 105 | BD180: 30 | BE180: 178 | BF180: 8165 | BG180: 30 | BH180: 65 | BI180: 89 | BJ180: 4155 | BK180: 48 | BL180: 83 | BM180: 45 | BN180: 10 | BQ180: 35
AV181: 19.8 | AW181: 19.8 | AX181: 17.8 | AY181: -10 | AZ181: 1000 | BC181: 105 | BD181: 30 | BE181: 179 | BF181: 8210 | BG181: 30 | BH181: 65 | BJ181: 4165 | BK181: -10 | BL181: 1000 | BM181: 45 | BN181: 10 | BQ181: 35
AV182: 19.9 | AW182: 19.9 | AX182: 17.9 | AY182: -10 | AZ182: 1000 | BC182: 105 | BD182: 30 | BE182: 180 | BF182: 8255 | BG182: 30 | BH182: 65 | BI182: 90 | BJ182: 4200 | BK182: 19 | BL182: 54 | BM182: 45 | BN182: 10 | BQ182: 35
AV183: 20 | AW183: 20 | AX183: 18 | AY183: -10 | AZ183: 1000 | BC183: 105 | BD183: 30 | BE183: 181 | BF183: 8300 | BG183: 30 | BH183: 65 | BJ183: 4210 | BK183: -10 | BL183: 1000 | BM183: 45 | BN183: 10 | BQ183: 35
AV184: 20.1 | AW184: 20.1 | AX184: 18.1 | AY184: -10 | AZ184: 1000 | BC184: 105 | BD184: 30 | BE184: 182 | BF184: 8345 | BG184: 30 | BH184: 65 | BI184: 91 | BJ184: 4245 | BK184: 54 | BL184: 89 | BM184: 45 | BN184: 10 | BQ184: 35
AV185: 20.2 | AW185: 20.2 | AX185: 18.2 | AY185: -10 | AZ185: 1000 | BC185: 105 | BD185: 30 | BE185: 183 | BF185: 8390 | BG185: 30 | BH185: 65 | BJ185: 4255 | BK185: -10 | BL185: 1000 | BM185: 45 | BN185: 10 | BQ185: 35
AV186: 20.3 | AW186: 20.3 | AX186: 18.3 | AY186: -10 | AZ186: 1000 | BC186: 105 | BD186: 30 | BE186: 184 | BF186: 8435 | BG186: 30 | BH186: 65 | BI186: 92 | BJ186: 4290 | BK186: 53 | BL186: 88 | BM186: 45 | BN186: 10 | BQ186: 35
AV187: 20.4 | AW187: 20.4 | AX187: 18.4 | AY187: -10 | AZ187: 1000 | BC187: 105 | BD187: 30 | BE187: 185 | BF187: 8480 | BG187: 30 | BH187: 65 | BJ187: 4300 | BK187: -10 | BL187: 1000 | BM187: 45 | BN187: 10 | BQ187: 35
AV188: 20.5 | AW188: 20.5 | AX188: 18.5 | AY188: -10 | AZ188: 1000 | BC188: 105 | BD188: 30 | BE188: 186 | BF188: 8525 | BG188: 30 | BH188: 65 | BI188: 93 | BJ188: 4335 | BK188: 17 | BL188: 52 | BM188: 45 | BN188: 10 | BQ188: 35
AV189: 20.6 | AW189: 20.6 | AX189: 18.6 | AY189: -10 | AZ189: 1000 | BC189: 105 | BD189: 30 | BE189: 187 | BF189: 8570 | BG189: 30 | BH189: 65 | BJ189: 4345 | BK189: -10 | BL189: 1000 | BM189: 45 | BN189: 10 | BQ189: 35
AV190: 20.7 | AW190: 20.7 | AX190: 18.7 | AY190: -10 | AZ190: 1000 | BC190: 105 | BD190: 30 | BE190: 188 | BF190: 8615 | BG190: 30 | BH190: 65 | BI190: 94 | BJ190: 4380 | BK190: 51 | BL190: 86 | BM190: 45 | BN190: 10 | BQ190: 35
AV191: 20.8 | AW191: 20.8 | AX191: 18.8 | AY191: -10 | AZ191: 1000 | BC191: 105 | BD191: 30 | BE191: 189 | BF191: 8660 | BG191: 30 | BH191: 65 | BJ191: 4390 | BK191: -10 | BL191: 1000 | BM191: 45 | BN191: 10 | BQ191: 35
AV192: 20.9 | AW192: 20.9 | AX192: 18.9 | AY192: -10 | AZ192: 1000 | BC192: 105 | BD192: 30 | BE192: 190 | BF192: 8705 | BG192: 30 | BH192: 65 | BI192: 95 | BJ192: 4425 | BK192: 52 | BL192: 87 | BM192: 45 | BN192: 10 | BQ192: 35
AV193: 21 | AW193: 21 | AX193: 19 | AY193: -10 | AZ193: 1000 | BC193: 105 | BD193: 30 | BE193: 191 | BF193: 8750 | BG193: 30 | BH193: 65 | BJ193: 4435 | BK193: -10 | BL193: 1000 | BM193: 45 | BN193: 10 | BQ193: 35
AV194: 21.1 | AW194: 21.1 | AX194: 19.1 | AY194: -10 | AZ194: 1000 | BC194: 105 | BD194: 30 | BE194: 192 | BF194: 8795 | BG194: 30 | BH194: 65 | BI194: 96 | BJ194: 4470 | BK194: 15 | BL194: 50 | BM194: 45 | BN194: 10 | BQ194: 35
AV195: 21.2 | AW195: 21.2 | AX195: 19.2 | AY195: -10 | AZ195: 1000 | BC195: =$AI$39-BD195 -> 105 | BD195: 30 | BE195: 193 | BF195: 8840 | BG195: 30 | BH195: 65 | BJ195: 4480 | BK195: -10 | BL195: 1000 | BM195: 45 | BN195: 10 | BQ195: 35
AV196: 21.3 | AW196: =ROUND(AV196,1) -> 21.3 | AX196: 19.3 | AY196: =VLOOKUP(AV196,$BJ$3:$BK$2002,2) -> -10 | AZ196: =VLOOKUP(AV196,$BJ$3:$BL$2002,3) -> 1000 | BC196: 105 | BD196: 30 | BE196: 194 | BF196: 8885 | BG196: =BD196 -> 30 | BH196: =IF(BG196="",100,BG196+BQ196) -> 65 | BI196: 97 | BJ196: 4515 | BK196: =IF(BI196=0,-10,VLOOKUP(BI196,$BE$3:$BG$1002,3)) -> 53 | BL196: 88 | BM196: 45 | BN196: 10 | BQ196: 35
AV197: =AV196+0.1 -> 21.4 | AW197: 21.4 | AX197: 19.4 | AY197: -10 | AZ197: 1000 | BC197: 105 | BD197: 30 | BE197: 195 | BF197: =BF196+BM197 -> 8930 | BG197: 30 | BH197: 65 | BJ197: =IF(ISNUMBER(BI197),VLOOKUP(BI197,$BE$3:$BG$1002,2)-BN197/2,BJ196+BN196) -> 4525 | BK197: -10 | BL197: =IF(ISNUMBER(BI197),VLOOKUP(BI197,$BE$3:$BH$1002,4),1000) -> 1000 | BM197: 45 | BN197: 10 | BQ197: 35
AV198: 21.5 | AW198: 21.5 | AX198: 19.5 | AY198: -10 | AZ198: 1000 | BC198: 105 | BD198: 30 | BE198: 196 | BF198: 8975 | BG198: 30 | BH198: 65 | BI198: 98 | BJ198: 4560 | BK198: 52 | BL198: 87 | BM198: 45 | BN198: 10 | BQ198: 35
AV199: 21.6 | AW199: 21.6 | AX199: 19.6 | AY199: -10 | AZ199: 1000 | BC199: 105 | BD199: 30 | BE199: 197 | BF199: 9020 | BG199: 30 | BH199: 65 | BJ199: 4570 | BK199: -10 | BL199: 1000 | BM199: 45 | BN199: 10 | BQ199: 35
AV200: 21.7 | AW200: 21.7 | AX200: 19.7 | AY200: -10 | AZ200: 1000 | BC200: 105 | BD200: 30 | BE200: 198 | BF200: 9065 | BG200: 30 | BH200: 65 | BI200: 99 | BJ200: 4605 | BK200: 30 | BL200: 65 | BM200: 45 | BN200: 10 | BQ200: 35
AV201: 21.8 | AW201: 21.8 | AX201: 19.8 | AY201: -10 | AZ201: 1000 | BC201: 105 | BD201: 30 | BE201: 199 | BF201: 9110 | BG201: 30 | BH201: 65 | BJ201: 4615 | BK201: -10 | BL201: 1000 | BM201: 45 | BN201: 10 | BQ201: 35
... 1801 more rows
